Cogmind - Beta 11.1 @@@ ROGUE MODE // 2022.11.07 @ 22:21:12 Player: Serom_69 Result: Destroyed by X-57 Shotgunner with Shotgun Performance ------------- Evolutions (2) 1000 Regions Visited (4) 800 Robots Destroyed (39) 195 Value Destroyed (592) 592 Prototype IDs (3) 60 Alien Tech Used (0) 0 Bonus (77) 77 TOTAL SCORE: 2724 Bonus ------- High Alert Combat Kills 77 Cogmind --------- Core Integrity 0/550 Matter 144/300 Energy 99/100 System Corruption 6% Temperature Cool (0) Movement Core (50) Location -8/Materials Parts ------- > --- POWER (1) -------- (None) > --- PROPULSION (3) --- (None) > --- UTILITY (4) ------ Improved Signal Interpreter > --- WEAPON (3) ------- (None) > --- INVENTORY (5) ---- Aluminum Leg Improved Aluminum Leg Small Storage Unit Peak State ------------ > --- POWER ------------ Light Angular Momentum Engine > --- PROPULSION ------- Improved Aluminum Leg Carbon-fiber Leg Titanium Leg > --- UTILITY ---------- Improved Sensor Array Improved Signal Interpreter Advanced Targeting Computer Improved Propulsion Shielding > --- WEAPON ----------- Ion Cannon Heavy Assault Rifle Missile Launcher > --- INVENTORY -------- Aluminum Leg Improved Aluminum Leg Small Storage Unit Heavy Assault Rifle [Rating: 33] Favorites ----------- Power Light Angular Momentum Engine Engine Light Angular Momentum Engine Propulsion Aluminum Leg Leg Aluminum Leg Utility Seismic Detector Device Seismic Detector Storage Small Storage Unit Processor Signal Interpreter Protection Improved Propulsion Shielding Weapon Rocket Launcher Energy Gun Beam Rifle Energy Cannon Ion Cannon Ballistic Gun Heavy Assault Rifle Launcher Rocket Launcher Build | -11 -10 -10 -9 -8 ------- Run | Scr Mat Min Mat Mat Slots Evolved 4 | . . . 2 2 Power . | . . . . . Propulsion 1 | . . . 1 . Utility 2 | . . . 1 1 Weapon 1 | . . . . 1 Parts Attached 33 | 7 . 3 11 12 Power 3 | 1 . 1 1 . Engine 3 | 1 . 1 1 . Core . | . . . . . Reactor . | . . . . . Propulsion 7 | 2 . . 2 3 Treads . | . . . . . Leg 7 | 2 . . 2 3 Wheel . | . . . . . Hover . | . . . . . Flight . | . . . . . Utility 9 | 2 . . 3 4 Device 3 | 1 . . 1 1 Storage 1 | 1 . . . . Processor 4 | . . . 2 2 Hackware . | . . . . . Protection 1 | . . . . 1 Artifact . | . . . . . Weapon 14 | 2 . 2 5 5 Energy Gun 3 | 1 . 1 . 1 Energy Cannon 1 | . . . . 1 Ballistic Gun 6 | 1 . . 3 2 Ballistic Cannon . | . . . . . Launcher 4 | . . 1 2 1 Special Weapon . | . . . . . Impact Weapon . | . . . . . Slashing Weapon . | . . . . . Piercing Weapon . | . . . . . Special Melee Weapon . | . . . . . Unidentified Prototypes . | . . . . . Parts Lost 10 | . . . 1 9 Power 1 | . . . . 1 Propulsion 3 | . . . . 3 Utility 2 | . . . . 2 Weapon 4 | . . . 1 3 Highest Loss Streak 6 | . . . 1 6 To Critical Strikes . | . . . . . Average Slot Usage (%) 95 | . 100 100 97 81 Engine 11 | . 14 14 10 7 Leg 28 | . 28 28 33 22 Device 11 | . 14 14 11 7 Storage 7 | . 14 14 . . Processor 9 | . . . 21 16 Energy Gun 8 | . 14 14 6 . Energy Cannon 1 | . . . . 4 Ballistic Gun 7 | . 14 3 7 15 Launcher 6 | . . 10 6 1 Naked Turns . | . . . . . Heaviest Build 24 | 15 15 22 22 24 Greatest Support 45 | 20 20 20 38 45 Greatest Overweight (x) 1 | . . 1 . 1 Average Overweight (x) . | . . . . . Largest Inventory Capacity 8 | 8 8 8 8 5 Average Capacity 6 | 7 8 8 5 5 Most Carried 6 | 2 3 6 5 4 Average Carried 3 | . . 4 4 3 Final Capacity 8 | 8 8 8 5 5 Final Carried 5 | . 1 4 5 3 Class Distribution -------------------- 72% | Mutant 15% | Scavenger-Mutant 6% | Skirmisher 5% | Scavenger-Skirmisher Dominant Class ---------------- Mutant | -10/Materials Mutant | -10/Mines Mutant | -9/Materials Skirmisher | -8/Materials Resources | -11 -10 -10 -9 -8 ----------- Run | Scr Mat Min Mat Mat Matter Collected 651 | 285 3 48 225 90 Remotely . | . . . . . Salvage Created 810 | 78 12 63 526 131 Parts 75 | 5 1 6 56 7 Haulers Intercepted . | . . . . . Recyclers Shooed 1 | . . . 1 . Parts Field Recycled . | . . . . . Retrieved Matter . | . . . . . Parts Self-Destructed . | . . . . . Prevented . | . . . . . Kills | -11 -10 -10 -9 -8 ------- Run | Scr Mat Min Mat Mat Combat Hostiles Destroyed 20 | . . 2 17 1 Guns 5 | . . 2 3 . AOE 15 | . . . 14 1 Classes Destroyed 8 | 2 1 2 3 . Worker 4 | . . 1 3 . Builder 7 | . . . 7 . Tunneler 1 | 1 . . . . Recycler 3 | 1 . . 1 1 Watcher 4 | . 1 . 2 1 Swarmer 13 | . . 2 11 . Grunt 3 | . . . 2 1 Sentry 4 | . . . 4 . Best Kill Streak 11 | 2 1 3 11 2 Combat Bots Only 9 | . . 2 9 1 Max Kills in Single Turn 4 | 1 1 2 4 2 Gunslinging . | . . . . . Exploded 3 | . . . 3 1 Melee . | . . . . . Uniques/NPCs Destroyed . | . . . . . Combat | -11 -10 -10 -9 -8 -------- Run | Scr Mat Min Mat Mat Damage Taken 1864 | . 35 9 476 1344 Core 687 | . 35 . 100 552 Absorbed by Shields . | . . . . . Redirected to Shielding 104 | . . . . 104 Regen/Repaired (Parts) 18 | . . . 18 . Core Remaining (%) 87 | 100 . 86 75 . Volleys Fired 55 | 5 1 6 34 9 Largest 3 | 2 2 2 2 3 Hottest 119 | 70 70 70 89 119 Shots Fired 104 | 10 2 12 58 22 Gun 81 | 10 2 12 41 16 Cannon 4 | . . . . 4 Launcher 19 | . . . 17 2 Special . | . . . . . Kinetic 51 | 5 1 6 23 16 Thermal 34 | 5 1 6 18 4 Explosive 19 | . . . 17 2 Electromagnetic . | . . . . . Robot Hit Streak 5 | 4 5 2 5 4 Robot Miss Streak 5 | 3 . 1 4 5 Penetration Max . | . . . . . Secondary Targets . | . . . . . Shots Hit Robots 44 | 6 1 3 27 7 Core Hits 56 | 3 1 3 37 12 Critical Kills . | . . . . . Critical Parts Destroyed 1 | . . . . 1 Critical Strikes 3 | . . 1 1 1 Burn 2 | . . 1 1 . Destroy 1 | . . . . 1 Melee Attacks . | . . . . . Impact . | . . . . . Slashing . | . . . . . Piercing . | . . . . . Sneak Attacks . | . . . . . Combat Hostiles . | . . . . . Follow-up Attacks . | . . . . . Damage Inflicted 2028 | 74 13 49 1623 269 Guns 473 | 74 13 49 280 57 Cannons 44 | . . . . 44 Explosions 1477 | . . . 1343 134 Melee . | . . . . . Ramming 34 | . . . . 34 Kinetic 295 | 38 . 36 164 57 Thermal 222 | 36 13 13 116 44 Explosive 1477 | . . . 1343 134 Electromagnetic . | . . . . . Impact . | . . . . . Slashing . | . . . . . Piercing . | . . . . . Highest Corruption 6 | . . . . 6 Average Corruption 1 | . . . . 1 Corruption Purged . | . . . . . Corruption Blocked . | . . . . . Effects 2 | . . . . 2 Message Errors 1 | . . . . 1 Parts Rejected 1 | . . . . 1 Overload Shots . | . . . . . Overflow Damage 48 | . . . 48 . Projectiles . | . . . . . Explosions 48 | . . . 48 . Melee . | . . . . . Knockbacks . | . . . . . Impact . | . . . . . Kinetic . | . . . . . Secondary . | . . . . . Self-Inflicted Damage 47 | . . . 38 9 Shots 1 | . . . 1 . Rammed 7 | . . . . 7 Targets Rammed 9 | . . . . 9 Kicked 2 | . . . . 2 Crushed . | . . . . . Highest Temperature 99 | 36 9 45 96 99 Average Temperature 27 | 16 6 19 30 38 Received Heat Transfer 723 | . 18 . 129 576 Siege Activations . | . . . . . Robots Corrupted . | . . . . . Combat Hostiles . | . . . . . Parts Fried . | . . . . . Impact Corruptions . | . . . . . Robots Melted . | . . . . . Combat Hostiles . | . . . . . Parts Melted 1 | 1 . . . . Heat Transferred 703 | 111 37 111 370 74 Parts Sabotaged . | . . . . . Parts Stolen . | . . . . . Parts Stripped . | . . . . . Power Chain Reactions . | . . . . . Missiles Intercepted . | . . . . . Alert | -11 -10 -10 -9 -8 ------- Run | Scr Mat Min Mat Mat Peak Influence 781 | 10 92 80 781 407 Initial 329 | . 6 35 . 329 Average 195 | 5 26 21 464 304 Maximum Alert Level 3 | . . . 3 2 Low Security (%) 60 | 100 100 100 9 22 Level 1 18 | . . . 9 74 Level 2 18 | . . . 68 3 Level 3 3 | . . . 12 . Level 4 . | . . . . . Level 5 . | . . . . . High Security . | . . . . . Max Security . | . . . . . Squads Dispatched 6 | . . . 2 4 Investigation 3 | . . . 1 2 Extermination . | . . . . . Reinforcement 3 | . . . 1 2 Assault . | . . . . . Garrison . | . . . . . Intercept . | . . . . . Searches Triggered . | . . . . . Construction Impeded 1 | . . . 1 . Haulers Reinforced . | . . . . . Active Scanning Responses . | . . . . . Cargo Convoy Interrupts . | . . . . . Stealth | -11 -10 -10 -9 -8 --------- Run | Scr Mat Min Mat Mat Distress Signals 4 | . . . 1 3 Communications Jammed . | . . . . . Distress Signals . | . . . . . Times Spotted 47 | . 5 4 19 19 Peak Tracking Total 13 | . 4 3 5 13 Tactical Retreats 2 | . . . . 2 Traps | -11 -10 -10 -9 -8 ------- Run | Scr Mat Min Mat Mat Traps Triggered 2 | . . . 1 1 Indirectly . | . . . . . Trap Hack Attempts . | . . . . . Triggered . | . . . . . Disarmed . | . . . . . Reprogrammed . | . . . . . Reused . | . . . . . Traps Extracted . | . . . . . Installed . | . . . . . Triggered . | . . . . . Machines | -11 -10 -10 -9 -8 ---------- Run | Scr Mat Min Mat Mat Machines Disabled 3 | . . . 3 . Max in Single Turn 1 | . . . 1 . Machines Sabotaged . | . . . . . Garrisons Compromised . | . . . . . Overloaded Fab Kills . | . . . . . Hacking | -11 -10 -10 -9 -8 --------- Run | Scr Mat Min Mat Mat Machines Accessed 8 | . 1 . 3 4 Terminals 3 | . . . 1 2 Fabricators . | . . . . . Repair Stations 1 | . . . 1 . Recycling Units 3 | . 1 . . 2 Scanalyzers 1 | . . . 1 . Garrison Access . | . . . . . Total Hacks 20 | . 4 . 5 11 Successful 16 | . 4 . 4 8 Failed 4 | . . . 1 3 Catastrophic . | . . . . . Database Lockouts . | . . . . . Manual 6 | . . . 6 . Terminals 6 | . . . 1 5 Fabricators . | . . . . . Repair Stations 2 | . . . 2 . Recycling Units 10 | . 4 . . 6 Scanalyzers 2 | . . . 2 . Garrison Access . | . . . . . Terminal Hacks 3 | . . . . 3 Record 1 | . . . . 1 Prototype ID Bank 1 | . . . . 1 Locate Traps 1 | . . . . 1 Fabricator Hacks . | . . . . . Repair Station Hacks 2 | . . . 2 . Scan Component 1 | . . . 1 . Repair 1 | . . . 1 . Recycling Unit Hacks 9 | . 4 . . 5 Recycle Component 3 | . 3 . . . Process 1 | . 1 . . . Report Inventory 1 | . . . . 1 Retrieve Matter 3 | . . . . 3 Retrieve Components 1 | . . . . 1 Scanalyzer 2 | . . . 2 . Insert Component 1 | . . . 1 . Analyze 1 | . . . 1 . Garrison Access Hacks . | . . . . . Unauthorized Hacks . | . . . . . Terminals . | . . . . . Fabricators . | . . . . . Repair Stations . | . . . . . Recycling Units . | . . . . . Scanalyzers . | . . . . . Garrison Access . | . . . . . Data Cores Recovered . | . . . . . Used . | . . . . . Hacking Detections 4 | . 1 . . 3 Full Trace Events 1 | . . . . 1 Feedback Events 1 | . . . . 1 Corruption 1 | . . . . 1 Feedback Blocked . | . . . . . Robot Schematics Acquired . | . . . . . Robots Built . | . . . . . Authchips . | . . . . . Time . | . . . . . Total Robot Build Rating . | . . . . . Part Schematics Acquired 1 | . . . 1 . Parts Built . | . . . . . Authchips . | . . . . . Time . | . . . . . Total Part Build Rating . | . . . . . Parts Repaired 1 | . . . 1 . Time 50 | . . . 50 . Parts Recycled 3 | . 3 . . . Recycled Matter 122 | . 122 . . . Retrieved Matter . | . . . . . Retrieved Components 2 | . . . . 2 Parts Scanalyzed 1 | . . . 1 . Part Schematics Acquired 1 | . . . 1 . Parts Damaged . | . . . . . Bothacking | -11 -10 -10 -9 -8 ------------ Run | Scr Mat Min Mat Mat Used RIF Installer . | . . . . . Robots Hacked . | . . . . . Non-combat . | . . . . . Combat . | . . . . . Robot Hacks Applied . | . . . . . Relay Couplers Released . | . . . . . Fabnet Peak Effective % . | . . . . . Robots Rewired . | . . . . . Allies Hacked . | . . . . . Hacks Repelled . | . . . . . Allies | -11 -10 -10 -9 -8 -------- Run | Scr Mat Min Mat Mat Total Allies . | . . . . . Largest Group . | . . . . . Highest-Rated Group . | . . . . . Highest-Rated Ally . | . . . . . Total Orders . | . . . . . Ally Attacks . | . . . . . Total Damage . | . . . . . Kills . | . . . . . Allies Corrupted . | . . . . . Allies Melted . | . . . . . Intel | -11 -10 -10 -9 -8 ------- Run | Scr Mat Min Mat Mat Robot Analysis Total . | . . . . . Derelict Logs Recovered 1 | . . 1 . . Drone Launches . | . . . . . Drone Recoveries . | . . . . . Exploration | -11 -10 -10 -9 -8 ------------- Run | Scr Mat Min Mat Mat Turns Passed 2475 | 74 189 1053 641 518 Spaces Moved 1564 | 41 135 601 389 398 Core 112 | 5 . . . 107 Treads . | . . . . . Legs 1452 | 36 135 601 389 291 Wheels . | . . . . . Hover . | . . . . . Flight . | . . . . . Fastest Speed 50 | 50 120 120 120 50 Average Speed 134 | 111 120 169 120 102 Slowest Speed 190 | 120 120 190 120 190 Overloaded Moves . | . . . . . Propulsion Burnouts . | . . . . . Robots Hopped . | . . . . . Cave-ins Triggered . | . . . . . Exploration Rate (%) 38 | 3 21 98 36 32 Regions Visited 4 Branch Regions 1 Pre-discovered Areas . | . . . . . Known Exits Taken 1 | . . . 1 . Unknown Exits Taken 3 | 1 1 1 . . Scrap Searched 1 | . . 1 . . Spaces Dug 7 | . . . 7 . Terrain Destroyed 167 | . . . 141 26 Melee . | . . . . . Projectile 1 | . . . . 1 AOE 166 | . . . 141 25 Terrain Rammed . | . . . . . Walls Destroyed . | . . . . . Machines Disabled . | . . . . . Actions | -11 -10 -10 -9 -8 --------- Run | Scr Mat Min Mat Mat Total 1834 | 59 160 620 503 492 Wait 132 | . 21 4 60 47 Move 1560 | 40 134 600 388 398 Hop . | . . . . . Pick Up 30 | 7 4 5 5 9 Fast Attach 3 | . . . 3 . Attach 19 | 7 . . 2 10 Detach 1 | . . . 1 . Swap 11 | . . 3 6 2 Drop 14 | . . 2 4 8 Fire 55 | 5 1 6 34 9 Melee . | . . . . . Ram 7 | . . . . 7 Kick 2 | . . . . 2 Crush . | . . . . . Escape Stasis . | . . . . . Rewire . | . . . . . Trap . | . . . . . Miscellaneous . | . . . . . Route ------- -11/Scrapyard -10/Materials (discovered 2 exits: [*Min x2]) -10/Mines (discovered 2 exits: *Mat x2) -9/Materials -8/Materials History --------- Turn | Location | Event 6 | -11/Scrapyard | Discovered new exit (range 15) 75 | -11/Scrapyard | Entered Materials 86 | -10/Materials | Discovered new exit (range 16) 241 | -10/Materials | Discovered new exit (range 15) 264 | -10/Materials | Entered Mines 267 | -10/Mines | Joined a pair of Derelicts in attacking an 0b10 outpost 316 | -10/Mines | Build established: Mutant 329 | -10/Mines | Discovered new exit (range 8) 490 | -10/Mines | Received a Rocket Launcher from a helpful Derelict 514 | -10/Mines | Learned Materials stockpile data 694 | -10/Mines | Discovered new exit (range 12) 1317 | -10/Mines | Entered Materials 1317 | -9/Materials | Evolved 2 slots: Propulsion x1, Utility x1 1426 | -9/Materials | Destroyed 9 combat bots 1625 | -9/Materials | Repaired Lgt. Angular Momentum Engine 1688 | -9/Materials | Discovered new exit (range 4) 1957 | -9/Materials | Identified exit to Materials 1958 | -9/Materials | Entered another Materials area 1958 | -8/Materials | Evolved 2 slots: Utility x1, Weapon x1 2417 | -8/Materials | Core integrity fell below 50% 2446 | -8/Materials | Core integrity fell below 20% 2454 | -8/Materials | Lost 6 parts (3n1u2w) 2476 | -8/Materials | Destroyed by X-57 Shotgunner with Shotgun Last Messages --------------- 02421_ Destabilizing: Core damaged (-11). 02422_ Slammed into G-47 Trooper. 02423_ Adv. Targeting Computer destroyed. 02423_ System corrupted by crushing effect (+3). 02423_ Destabilizing: System corrupted (+2). 02425_ Slammed into T-07 Excavator. 02425_ Imp. Signal Interpreter broken. 02425_ Destabilizing: Short circuit. 02429_ W,3MSJXET97TDHP&#F9>%LYXCKYRWFSXXE 02440_ W-25 Informer sends out distress signal. 02445_ Acquired 68 matter. 02447_ Critical hit (Burn: +37). 02455_ W-25 Informer sends out distress signal. 02465_ T-07 Excavator is excavating. 02466_ O-16 Technician: "IFF HANDSHAKE FAILED. SECURING TERMINAL." 02469_ T-07 Excavator is excavating. 02470_ ALERT: Suspicious intruders detected, dispatching Specialist reinforcements to area. 02472_ ALERT: Hostiles spotted, dispatching reinforcements to Terminal M004. Map ----- +----------------------------------------------------+ | ?????????????????????????????????????????????? | | ?????????????????????????????????????????????? | | ?????????????????????????????????????????????? | | ?????????????????????????????????????????????? | | ?????????????????????????????????????????????? | | ?????????????????????????????????????????????? | | ?????????????????????????????????????????????? | | ?????????????????????????????????????????????? | | ?????????????????????????????????????????????? | | ?????????????????????????????????????????????? | | ????????????????????????????????????##+#?????? | | ????????????????? ?????????????????# ?????? | | ???????????????" w####?????????????# #????? | | ???????????????"k #????????????# #????? | | ?????????????""" #????????????# +????? | | ????????????? k #????????????# #????? | | ?????????????? #????????????# #????? | | ???????????? #????????????# #????? | | ????????????? "" #????????????# #????? | | ?????????????? G" #????????????# ###### | | ???????????????" #????????????# | | ????????????????g #????????????# ###### | | ?????????????????gx #??########### #????? | | ??????????????????# #??# # #??### | | ??????????????????# #??# # #?]]] | | ??????????????????# @ #??# # #?]]] | | ??????????????????# #??# # # ]]] | | ??????????????????# #??# # # | | ??????????????????# #??# + + | | ??????????????????# #??# # # """ | | ??????????????????# #??# # # """ | | ???????????????#### ############## #?""" | | ???????????????# a #? | | ???????????????# #??#+# | | ???????????????# #????? | | ???????????????+ ########## ###########????? | | ???????????????# ????????# #??????????????? | | ???????????????# ????????####??????????????? | | ???????????????# ??????????????????????????? | | ???????????????# ???????????????????????????? | | ???????????????# ???????????????????????????? | | ???????????????# ???????????????????????????? | | ?????????????????????????????????????????????? | | ?????????????????????????????????????????????? | | ?????????????????????????????????????????????? | | ?????????????????????????????????????????????? | | ?????????????????????????????????????????????? | | ?????????????????????????????????????????????? | | ?????????????????????????????????????????????? | | ?????????????????????????????????????????????? | +----------------------------------------------------+ Best States ------------- Heat Dissipation 31 Energy Generation 18 Energy Capacity 250 Matter Stores 300 Matter Capacity 300 Sight Range 16 Robot Scan Range 15 Terrain Scan Density 10 Propulsion Shielding 66 Evasion (%) 55 Targeting Accuracy 8 Item Schematics ----------------- Imp. Medium Laser | -9/Materials | Scanalyzed Robot Schematics ------------------ None Fabricated ------------ Nothing Alien Tech Used ----------------- None Achievements -------------- None Challenges ------------ None Game ------ Seed PrecisionMolecularClaws Manual? 1 Play Time 00:44:21 Cumulative 12.8 hours Start 2022.11.07 @ 21:32:34 End 2022.11.07 @ 22:21:12 Sessions 1 Manual Loads 0 Difficulty Rogue Special Mode None Game No. 9 Rogue 9 Adventurer 0 Explorer 0 Win Type - Total 0 Types 0/0/0/0/0/0/0/0/0 Lore% 5 Gallery% 11 Achievement% 12 Wizard Run 0 Options --------- ASCII 0 Keyboard 0 Movement Mouse Keybinds 0 Fullscreen 1 Font 24/Terminus Map View 76x50 Tactical HUD 1 Map Filters NONE Filters NONE Steam 1 RUN: 4236774b-6e77-4cd6-83af-396dea6ca156